[Event "7th Sharjah Masters 2024"]
[Site "Sharjah"]
[Date "2024.05.14"]
[Round "1.22"]
[White "Sankalp Gupta"]
[Black "Ter-Sahakyan, Samvel"]
[Result "1/2-1/2"]
[ECO "D30"]
[WhiteElo "2532"]
[BlackElo "2652"]
[Annotator "TA"]
[PlyCount "132"]
[EventDate "2024.05.13"]
[EventType "swiss"]
[EventCountry "UAE"]
[SourceTitle "playchess.com"]
[Source "ChessBase"]
[SourceQuality "1"]
[TimeControl "5400+30"]

{[%evp 45,132,-195,-197,-266,-264,-235,-244,-204,-57,-69,-54,-68,-56,-50,-54,-75,-34,-25,-40,-24,-26,-23,-30,-24,-26,-15,-27,-16,-22,-21,-24,-16,-13,-23,-20,-22,-22,-22,-22,-20,-25,-17,-17,-17,-20,-18,-24,-18,-8,-12,-12,-20,-16,-22,-8,-8,-8,-8,-8,-20,-20,-20,-20,-20,-16,-16,-16,-15,-1,-12,0,0,0,0,0,0,0,0,0,0,0,0,0,0,0,0,0,0,0]} 1. Nf3 {[%emt 1:31:00]} d5 {[%emt 0:00:12]} 2. e3 {[%emt 0:00:00]} Nf6 {[%emt 0:04:52]} 3. c4 {[%emt 0:00:00]} c6 {[%emt 0:00:04]} 4. Nc3 {[%emt 0:00:00]} Nbd7 {[%emt 0:02:56]} 5. cxd5 {[%emt 0:00:00]} cxd5 {[%emt 0:00:14]} 6. d4 {[%emt 0:00:00]} e6 {[%emt 0:00:29]} 7. Bd3 {[%emt 0:00:00]} Bd6 $1 {[%emt 0:00:11] 7...Bd6 scores better than 7...Be7.} 8. O-O {[%emt 0:00:00] D30: Queen's Gambit Declined: Systems without Nc3.} O-O {[%emt 0:00:06]} 9. Bd2 {[%emt 0:00:00]} a6 {[%emt 0:01:02]} 10. a3 {[%emt 0:00:00]} e5 {[%emt 0:03:12]} 11. dxe5 {[%emt 0:00:00]} Nxe5 {[%emt 0:00:28]} 12. Be2 {[%emt 0:00:00]} Re8 $146 {[%emt 0:10:44]} ({Predecessor:} 12... Ng6 13. Qb3 Rb8 14. Rfd1 h6 15. h3 Be6 16. Nd4 Qd7 17. Nxe6 fxe6 18. Rac1 Qf7 {½-½ Klaas,T (1653)-Masrahi,A (1746) Olympiad-41 Tromsoe 2014 (7.1)}) 13. Rc1 {[%emt 0:00:00]} Qe7 {[%emt 0:09:25]} 14. Nd4 {[%emt 0:00:00]} b5 {[%emt 0:02:25]} 15. Na2 {[%emt 0:00:00]} Nc4 {[%emt 0:03:20]} 16. Rc2 {[%emt 0:00:00]} Qe5 {[%emt 0:08:45]} 17. Nf3 {[%emt 0:00:00]} Qh5 {[%emt 0:00:23]} 18. Bb4 {[%emt 0:00:00]} Bb8 {[%emt 0:03:46]} 19. b3 {[%emt 0:00:00]} Ng4 {[%emt 0:06:09]} 20. h3 {[%emt 0:00:00]} Ngxe3 {[%emt 0:02:11]} 21. fxe3 {[%emt 0:00:00]} Nxe3 {[%emt 0:00:07]} 22. Rxc8 {[%emt 0:00:00]} Rxc8 {[%emt 0:00:52]} 23. Qd3 {[%emt 0:00:00]} Ba7 {[%emt 0:05:03]} 24. Rf2 {[%emt 0:00:00]} (24. Bd2 {might work better.} Re8 (24... Nxf1+ $2 25. Kxf1 Qg6 26. Qxg6 $19) 25. Nc3) 24... Qf5 $19 {[%emt 0:09:42]} 25. Bc3 {[%emt 0:00:00]} Qxd3 {[%emt 0:10:22]} 26. Bxd3 {[%emt 0:00:00] [#]} Rxc3 {[%emt 0:00:49]} (26... Nd1 $1 $19 {[%mdl 512]} 27. Bd4 Nxf2 28. Kxf2 Bxd4+ 29. Nxd4 Rd8) 27. Nxc3 $15 {[%emt 0:00:00]} Rc8 {[%emt 0:00:09]} 28. Ne2 {[%emt 0:00:09]} Nd1 {[%emt 0:00:39]} 29. Ned4 {[%emt 0:00:13]} Nxf2 {[%emt 0:00:22]} 30. Kxf2 {[%emt 0:00:02]} Bc5 {[%emt 0:02:03]} (30... Re8 $5 31. a4 g5 $15) 31. a4 {[%emt 0:00:19]} bxa4 {[%emt 0:01:16]} 32. bxa4 {[%emt 0:00:04]} Rb8 {[%emt 0:01:38]} 33. Bxa6 {[%emt 0:00:28]} Rb4 {[%emt 0:00:08]} 34. Ke3 {[%emt 0:00:05]} Rxa4 {[%emt 0:00:24]} 35. Be2 {[%emt 0:02:13]} g6 {[%emt 0:00:52]} 36. Kd3 $1 {[%emt 0:00:16]} Ra3+ {[%emt 0:00:17]} 37. Kc2 {[%emt 0:01:03]} Kg7 {[%emt 0:01:28]} 38. Nb5 {[%emt 0:02:06]} Ra5 {[%emt 0:00:36]} 39. Ne5 {[%emt 0:01:11]} Ra2+ {[%emt 0:02:36]} 40. Kd3 {[%emt 0:05:03]} Rb2 {[%emt 0:00:16]} 41. Nc7 {[%emt 0:00:04]} Rb3+ {[%emt 0:04:07]} 42. Kd2 $1 {[%emt 0:00:02]} Bb4+ {[%emt 0:02:15]} 43. Kd1 {[%emt 0:00:02]} Rb2 {[%emt 0:00:56]} 44. Nf3 {[%emt 0:03:52]} d4 {[%emt 0:00:22]} 45. Nd5 {[%emt 0:00:03]} Bc3 {[%emt 0:00:47]} 46. Nf4 {[%emt 0:00:14]} f5 {[%emt 0:02:36]} 47. Nd3 {[%emt 0:03:39]} Ra2 {[%emt 0:00:14]} 48. Nc1 {[%emt 0:00:11]} Ra8 {[%emt 0:00:38]} 49. Kc2 {[%emt 0:00:10]} Re8 {[%emt 0:00:37]} 50. Bc4 {[%emt 0:01:10]} Kf6 {[%emt 0:00:58]} 51. Ne2 {[%emt 0:00:23]} g5 {[%emt 0:01:15]} 52. Nfxd4 {[%emt 0:01:26]} Bxd4 {[%emt 0:00:08]} 53. Nxd4 {[%emt 0:00:01]} Ke5 {[%emt 0:00:46]} 54. Ne2 {[%emt 0:00:05]} Rd8 {[%emt 0:00:45]} 55. Bd3 {[%emt 0:00:06]} Ra8 {[%emt 0:00:24]} 56. Kd2 {[%emt 0:00:05]} h5 {[%emt 0:00:10]} 57. Ng3 {[%emt 0:01:18]} Ra2+ {[%emt 0:00:35]} 58. Bc2 $1 {[%emt 0:00:10]} h4 {[%emt 0:00:45]} 59. Nxf5 {[%emt 0:00:13]} Rxc2+ {[%emt 0:00:03]} 60. Kxc2 {[%emt 0:00:02]} Kxf5 {[%emt 0:00:04]} 61. Kd3 {[%emt 0:00:16]} Kf4 {[%emt 0:00:01]} 62. Ke2 {[%emt 0:00:05]} Kg3 {[%emt 0:00:02]} 63. Kf1 {[%emt 0:00:05]} g4 {[%emt 0:00:03]} 64. hxg4 {[%emt 0:00:03]} Kxg4 {[%emt 0:00:03]} 65. Kf2 {[%emt 0:00:05]} h3 {[%emt 0:00:02]} 66. gxh3+ {[%emt 0:00:04]} Kxh3 {[%emt 0:00:03]} 1/2-1/2

[Event "7th Sharjah Masters 2024"]
[Site "Sharjah"]
[Date "2024.05.14"]
[Round "1.23"]
[White "Nguyen, Thai Dai Van"]
[Black "Pranav Anand"]
[Result "1-0"]
[ECO "D35"]
[WhiteElo "2650"]
[BlackElo "2532"]
[Annotator "TA"]
[PlyCount "111"]
[EventDate "2024.05.13"]
[EventType "swiss"]
[EventCountry "UAE"]
[SourceTitle "playchess.com"]
[Source "ChessBase"]
[SourceQuality "1"]
[TimeControl "5400+30"]

{[%evp 64,111,210,162,160,132,168,179,189,94,89,96,95,89,106,109,158,160,154,137,152,155,168,161,160,94,103,93,84,100,620,319,753,0,561,0,873,861,897,491,29970,29971,29984,4798,2062,1968,29984,29985,29985,29986]} 1. c4 {[%emt 0:00:02]} e6 {[%emt 0:00:14]} 2. Nc3 {[%emt 0:00:13]} d5 {[%emt 0:00:06]} 3. d4 {[%emt 0:00:05]} Nf6 {[%emt 0:00:04]} 4. cxd5 {[%emt 0:00:20]} exd5 {[%emt 0:00:04]} 5. Bg5 {[%emt 0:00:08]} Be7 {[%emt 0:00:06]} 6. e3 {[%emt 0:00:25]} h6 {[%emt 0:00:06]} 7. Bh4 {[%emt 0:00:12]} Bg4 {[%emt 0:00:05]} 8. Qc2 {[%emt 0:11:11]} O-O {[%emt 0:00:42]} 9. h3 {[%emt 0:00:06]} Be6 {[%emt 0:00:05]} 10. Rd1 {[%emt 0:04:06]} Ne8 {[%emt 0:04:27]} 11. Bxe7 {[%emt 0:03:19]} Qxe7 {[%emt 0:00:20]} 12. Bd3 {[%emt 0:00:25]} Nd6 {[%emt 0:04:40]} 13. Nge2 {[%emt 0:01:23]} Nd7 {[%emt 0:03:43]} 14. O-O {[%emt 0:00:16]} c6 {[%emt 0:02:49]} 15. f3 {[%emt 0:10:24]} f5 {[%emt 0:10:49]} 16. Rde1 {[%emt 0:05:18]} Rae8 {[%emt 0:07:05]} 17. Nf4 {[%emt 0:15:30]} Qf6 {[%emt 0:06:15]} 18. Qf2 {[%emt 0:08:43]} Bf7 {[%emt 0:01:46]} 19. Bc2 {[%emt 0:03:59]} a5 {[%emt 0:07:37]} 20. b3 {[%emt 0:01:38]} b5 {[%emt 0:02:44]} 21. Qd2 {[%emt 0:00:55]} g5 {[%emt 0:04:29]} 22. Nfe2 {[%emt 0:04:04]} Bg6 {[%emt 0:03:00]} 23. Nd1 {[%emt 0:06:07]} Qd8 {[%emt 0:02:19]} 24. Nf2 {[%emt 0:02:48]} Re6 {[%emt 0:04:45]} 25. Nd3 {[%emt 0:04:14]} Kh7 {[%emt 0:09:06]} 26. Nc5 {[%emt 0:10:26]} Re7 {[%emt 0:03:58]} 27. Nxd7 {[%emt 0:00:12]} Rxd7 {[%emt 0:02:46]} 28. Nc1 {[%emt 0:00:25]} Re7 {[%emt 0:05:05]} 29. Nd3 {[%emt 0:00:36]} Nf7 {[%emt 0:00:17]} 30. Bb1 {[%emt 0:01:21]} b4 {[%emt 0:01:25]} 31. f4 {[%emt 0:00:49]} Qd6 {[%emt 0:00:53]} 32. Rc1 {[%emt 0:00:58]} Qe6 {[%emt 0:02:19]} 33. Ne5 {[%emt 0:00:08]} Nxe5 {[%emt 0:00:30]} 34. fxe5 {[%emt 0:00:05]} Rg7 {[%emt 0:00:38]} 35. Rc5 {[%emt 0:02:15]} f4 {[%emt 0:00:15] [#]} 36. Bxg6+ {[%emt 0:05:24]} (36. exf4 Bxb1 37. Rxb1 gxf4 $14) (36. Qc1 $1 $18 {is more deadly.} Bxb1 37. Qxb1+ Rg6 38. Kh2 (38. Rxa5 Kh8 $18)) 36... Qxg6 $16 {[%emt 0:01:09]} 37. Qc2 {[%emt 0:00:00]} (37. exf4 gxf4 38. Qc2 (38. Rxa5 f3 $17) 38... Qxc2 39. Rxc2 f3 $11) 37... Qxc2 {[%emt 0:00:09]} 38. Rxc2 {[%emt 0:00:00]} Rgf7 {[%emt 0:00:06]} 39. e6 {[%emt 0:00:00]} Rf6 {[%emt 0:02:52]} ({Black should try} 39... Rc7) 40. Rxc6 $16 {[%emt 0:00:14]} Re8 {[%emt 0:00:16]} 41. exf4 {[%emt 0:00:14]} gxf4 {[%emt 0:00:02]} 42. Re1 {[%emt 0:01:02]} f3 {[%emt 0:11:24]} 43. Re5 {[%emt 0:00:51]} fxg2 {[%emt 0:00:00]} 44. Rc7+ {[%emt 0:00:24]} (44. Kxg2 Rg8+ 45. Kh1 Rf1+ 46. Kh2 Rf2+ 47. Kh1 Rf1+ 48. Kh2 Rf2+ 49. Kh1 Rf1+ $11) (44. Rxd5 $6 Rfxe6 45. Rxe6 Rxe6 $16) (44. Rd6 $142 $1) 44... Kg6 $16 {[%emt 0:00:00]} 45. e7 {[%emt 0:00:03]} (45. Rxd5 Rexe6 46. Rxa5 (46. Kxg2 Re2+ 47. Kg3 h5 $11) 46... Re1+ (46... Re2 47. Rc1 $11) 47. Kxg2 Re2+ 48. Kg1 Re1+ 49. Kh2 Re2+ 50. Kg1 Re1+ 51. Kg2 Re2+ 52. Kg3 Re3+ 53. Kh2 (53. Kg2 Re2+ $11) 53... Re2+ (53... Rf2+ 54. Kg1 $16) 54. Kg1 $11) (45. Kxg2 $6 Rfxe6 46. Rxe6+ (46. Rxd5 Re2+ 47. Kf3 R8e3+ 48. Kf4 Re4+ 49. Kf3 R2e3+ 50. Kg2 Re2+ 51. Kf3 R4e3+ 52. Kf4 Re4+ 53. Kg3 R4e3+ 54. Kf4 $11) 46... Rxe6 $11) 45... Rf5 {[%emt 0:00:00]} 46. Rc6+ {[%emt 0:00:24]} (46. Kxg2 $6 Rxe5 47. dxe5 Kf5 $11) 46... Kg5 $2 {[%emt 0:00:00][%mdl 8192]} (46... Rf6 $16 47. Rc2 (47. Rxf6+ Kxf6 48. Rxd5 Rxe7 $16) 47... Rf4) 47. Re2 {[%emt 0:01:28]} (47. Kxg2 Rxe5 48. dxe5 Rxe7 $11) 47... Rf4 $2 {[%emt 0:00:00]} (47... Rf1+ 48. Kxg2 Rf6) 48. Re5+ {[%emt 0:00:16]} (48. Kxg2 Rxd4 49. Rd6 Re4 50. Rxd5+ Kf4 51. Rxe4+ Kxe4 52. Rxa5 Rxe7 $16) 48... Rf5 {[%emt 0:00:00]} 49. Re2 {[%emt 0:00:42]} (49. Kxg2 Rxe5 50. dxe5 Rxe7 $11) (49. Rxf5+ Kxf5 50. Kxg2 (50. Rc7 Ke4 $11) 50... Rxe7 $11) (49. h4+ $142 Kf4 50. Re2 (50. Rxh6 Rxe5 51. dxe5 Rxe7 $17) (50. Rxf5+ Kxf5 51. Rc7 Ke6 $11)) 49... Rf4 $18 {[%emt 0:00:00]} 50. Rd6 {[%emt 0:00:05]} (50. Kxg2 Rxd4 51. Rd6 Re4 52. Rxd5+ Kf4 53. Rxe4+ Kxe4 54. Rxa5 Rxe7 $18) 50... Rf7 {[%emt 0:00:00]} 51. Rxd5+ {[%emt 0:00:16]} Kh4 {[%emt 0:00:02]} (51... Kf6 $18 52. Rd6+ (52. Kxg2 Rexe7 53. Rxe7 Kxe7 $16) (52. Rxa5 Rfxe7 53. Rxg2 Re4 $16) 52... Kg7) 52. Rde5 {[%emt 0:00:27]} Kxh3 {[%emt 0:01:10]} 53. R5e3+ {[%emt 0:00:48]} (53. Rxa5 $2 Rf1#) (53. Rxg2 $142 Rf4 54. Rh5+ (54. Rxa5 Rxe7 55. Rh5+ Rh4 $18) 54... Rh4 55. Rh2+ (55. Rxa5 Rxe7 56. Ra6 h5 $14) 55... Kg4 56. R5xh4+ (56. R2xh4+ Kg3 $18) 56... Kg5 57. Re4 (57. Rxh6 Rxe7 58. Kf2 Rc7 $18) 57... h5 58. d5) 53... Kh4 {[%emt 0:00:06]} 54. Kxg2 {[%emt 0:00:56]} Rf5 {[%emt 0:00:22]} 55. Re5 {[%emt 0:00:31]} Rf4 {[%emt 0:01:37]} 56. R5e4 {[%emt 0:00:24]} 1-0

[Event "7th Sharjah Masters 2024"]
[Site "Sharjah"]
[Date "2024.05.14"]
[Round "1.24"]
[White "Kacharava, Nikolozi"]
[Black "Yilmaz, Mustafa"]
[Result "1-0"]
[ECO "B90"]
[WhiteElo "2527"]
[BlackElo "2641"]
[Annotator "TA"]
[PlyCount "61"]
[EventDate "2024.05.13"]
[EventType "swiss"]
[EventCountry "UAE"]
[SourceTitle "playchess.com"]
[Source "ChessBase"]
[SourceQuality "1"]
[TimeControl "5400+30"]

{[%evp 11,61,0,0,-21,-52,-35,-22,-14,-15,-2,-16,-3,-8,-9,0,-33,0,0,0,0,0,0,18,30,16,25,20,25,18,4,496,504,506,487,427,491,479,487,465,464,610,632,690,692,706,671,1038,1031,952,926,920,891]} 1. e4 {[%emt 0:00:10]} c5 {[%emt 0:00:05]} 2. Nf3 {[%emt 0:00:22]} d6 {[%emt 0:00:04]} 3. d4 {[%emt 0:00:36]} cxd4 {[%emt 0:00:05]} 4. Nxd4 {[%emt 0:00:48]} Nf6 {[%emt 0:00:05]} 5. Nc3 {[%emt 0:00:22]} a6 {[%emt 0:00:04]} 6. Rg1 {[%emt 0:00:46]} b5 {[%emt 0:01:21]} 7. a4 {[%emt 0:00:56]} b4 {[%emt 0:00:22]} 8. Nd5 {[%emt 0:00:21]} e6 {[%emt 0:00:28]} (8... Nxe4 $5 9. Bc4 (9. Nxb4 e5 $17) 9... e6 $11) 9. Nxf6+ {[%emt 0:01:12] The position is equal.} Qxf6 {[%emt 0:00:02]} 10. Be3 {[%emt 0:01:05]} Bb7 {[%emt 0:00:10][%cal Bc8b7,Bb7e4,Be4g6][%mdl 32]} 11. Qd2 {[%emt 0:00:55]} Bxe4 {[%emt 0:00:33]} 12. O-O-O {[%emt 0:01:20]} Qd8 {[%emt 0:30:13]} 13. Bg5 {[%emt 0:01:53]} Be7 {[%emt 0:04:21]} 14. Bxe7 {[%emt 0:00:36]} Qxe7 {[%emt 0:00:09]} 15. f3 {[%emt 0:04:25]} Bg6 {[%emt 0:01:44]} 16. h4 {[%emt 0:01:50]} Qxh4 {[%emt 0:11:40] aiming for ...0-0.} 17. f4 {[%emt 0:02:30][%cal Og2g3] And now g3! would win.} Be4 $1 {[%emt 0:07:03]} 18. g4 {[%emt 0:06:12][%cal Of1d3]} Nd7 {[%emt 0:11:16]} 19. Bg2 $1 {[%emt 0:29:04]} Bxg2 {[%emt 0:00:03]} 20. Rxg2 {[%emt 0:01:19]} Rc8 {[%emt 0:05:48][%mdl 8192] [#] Wards off Nc6. Loses the game.} (20... Qd8 $11 {and Black stays safe.}) 21. Nf5 $1 $18 {[%emt 0:12:14][%mdl 512] White is clearly winning.} exf5 {[%emt 0:00:16]} 22. Qxd6 {[%emt 0:07:10]} Qe7 {[%emt 0:02:27] [#] Prevents Re2.} 23. Re2 $3 {[%emt 0:00:15][%csl Ge2][%cal Rd6e7][%mdl 512]} Rxc2+ {[%emt 0:00:33]} 24. Rxc2 {[%emt 0:00:08] Rc8+ would kill now.} Qxd6 {[%emt 0:00:17]} 25. Rxd6 {[%emt 0:00:04][%mdl 4096] Endgame. KRR-KRN} Ke7 {[%emt 0:03:49]} 26. Rxa6 {[%emt 0:00:26] Threatens to win with Re2+.} Rb8 {[%emt 0:04:10]} 27. gxf5 {[%emt 0:02:14]} Rb7 {[%emt 0:06:22]} 28. a5 {[%emt 0:04:04]} b3 {[%emt 0:00:14]} 29. Re2+ {[%emt 0:01:14]} Kd8 {[%emt 0:00:01]} 30. Ra8+ {[%emt 0:01:17]} Kc7 {[%emt 0:00:02]} 31. Re7 {[%emt 0:00:59] Weighted Error Value: White=0.05 (flawless) /Black=0.51.  Loses game:     	---       	Black=1      Inaccurate:     	White=1     	Black=2      OK:         	White=10    	Black=7      Best:        	---       	Black=3      Strong:       	White=1     	Black=1      Brilliant:      	White=2     	---} 1-0

[Event "7th Sharjah Masters 2024"]
[Site "Sharjah"]
[Date "2024.05.14"]
[Round "1.25"]
[White "Mendonca, Leon Luke"]
[Black "Krzyzanowski, Marcin"]
[Result "0-1"]
[ECO "B92"]
[WhiteElo "2640"]
[BlackElo "2526"]
[Annotator "TA"]
[PlyCount "126"]
[EventDate "2024.05.13"]
[EventType "swiss"]
[EventCountry "UAE"]
[SourceTitle "playchess.com"]
[Source "ChessBase"]
[SourceQuality "1"]
[TimeControl "5400+30"]

{[%evp 43,126,22,10,0,12,0,0,-12,0,0,0,0,0,0,0,-62,-63,-85,-82,-98,-85,-208,-196,-212,-216,-214,-215,-225,-182,-168,-180,-176,-154,-162,-165,-155,-99,-106,-77,-94,-90,-106,-107,-118,-108,-126,-121,-118,-106,-106,-89,-94,-94,-166,-120,-138,-134,-298,-298,-335,-327,-507,-518,-649,-648,-703,-623,-623,-522,-522,-535,-533,-529,-796,-775,-712,-665,-662,-645,-655,-648,-689,-680,-1132,-1095]} 1. e4 {[%emt 0:00:07]} c5 {[%emt 0:00:04]} 2. Nf3 {[%emt 0:00:26]} d6 {[%emt 0:00:06]} 3. d4 {[%emt 0:00:10]} cxd4 {[%emt 0:00:05]} 4. Nxd4 {[%emt 0:00:05]} Nf6 {[%emt 0:00:06]} 5. Nc3 {[%emt 0:00:07]} a6 {[%emt 0:00:04]} 6. Be2 {[%emt 0:01:34]} e5 {[%emt 0:00:09]} 7. Nb3 {[%emt 0:00:09]} Be7 {[%emt 0:00:18]} 8. O-O {[%emt 0:00:46]} O-O {[%emt 0:00:08]} 9. Re1 {[%emt 0:01:50]} Be6 {[%emt 0:00:57] B92: Sicilian Najdorf: 6 Be2.} 10. Bf3 {[%emt 0:00:19]} Qc7 {[%emt 0:00:58]} 11. a4 {[%emt 0:00:54]} Rc8 {[%emt 0:01:27]} 12. Be3 {[%emt 0:08:20]} Nbd7 {[%emt 0:06:59]} 13. a5 {[%emt 0:01:37]} h6 {[%emt 0:04:25]} 14. h3 {[%emt 0:01:36]} Bf8 {[%emt 0:12:44]} 15. Nd2 $146 {[%emt 0:23:15]} ({Predecessor:} 15. Qd2 Rab8 16. Rec1 b5 17. axb6 Nxb6 18. Na5 Nbd7 19. Rcb1 Nc5 20. Qe2 Nb7 21. Nxb7 Qxb7 {½-½ Wieczorek,O (2504)-Nasuta,G (2546) POL-ch sf Karpacz 2022 (8)}) 15... Qc6 {[%emt 0:16:45]} 16. Ndb1 {[%emt 0:05:57]} Be7 {[%emt 0:03:35]} 17. b3 {[%emt 0:08:55]} Bd8 {[%emt 0:02:40]} 18. Ra2 {[%emt 0:18:27]} b6 {[%emt 0:07:57]} 19. axb6 {[%emt 0:00:05]} Nxb6 {[%emt 0:02:57]} 20. Re2 {[%emt 0:04:34]} a5 {[%emt 0:05:35]} 21. Rd2 {[%emt 0:00:23]} Be7 {[%emt 0:02:50]} 22. Qe2 {[%emt 0:14:24]} Nbd7 {[%emt 0:09:13]} 23. Qb5 {[%emt 0:03:53]} Qc7 {[%emt 0:01:08]} 24. Na4 {[%emt 0:01:40]} Rab8 {[%emt 0:02:49]} 25. Qa6 {[%emt 0:00:19]} Bc4 {[%emt 0:01:44]} 26. Qxc4 {[%emt 0:02:31]} Qxc4 {[%emt 0:00:09]} 27. bxc4 {[%emt 0:00:00]} Rxb1+ {[%emt 0:00:07]} 28. Kh2 {[%emt 0:00:54]} Rxc4 {[%emt 0:01:14]} 29. Nb2 {[%emt 0:00:12]} (29. Be2 $11 Rc8 (29... Rxe4 30. Nc3 $11) 30. Ba6) 29... Rc8 $15 {[%emt 0:05:23]} 30. c3 {[%emt 0:00:18]} Nc5 {[%emt 0:02:23]} 31. Bxc5 {[%emt 0:00:59]} Rxc5 {[%emt 0:00:05]} 32. Nd3 {[%emt 0:00:21]} (32. c4 $17) 32... Rxc3 $19 {[%emt 0:02:43]} 33. Rxa5 {[%emt 0:00:26] [#]} d5 $1 {[%emt 0:01:36]} 34. Ra4 {[%emt 0:01:23]} Bd6 {[%emt 0:03:32]} 35. Nb2 {[%emt 0:00:32]} Ra3 {[%emt 0:00:56]} 36. Rxa3 {[%emt 0:00:29]} Bxa3 {[%emt 0:00:02]} 37. Nd1 {[%emt 0:00:28]} Bb4 {[%emt 0:02:08]} 38. Rc2 {[%emt 0:00:33]} dxe4 {[%emt 0:02:14]} ({Weaker is} 38... Nxe4 39. Ne3 $14) 39. Be2 {[%emt 0:00:04]} Bd6 {[%emt 0:00:42]} ({Black should play} 39... g6 40. Ne3 Kg7) 40. Ne3 $17 {[%emt 0:00:33]} Rb8 {[%emt 0:00:55]} 41. g4 {[%emt 0:00:45]} Rd8 {[%emt 0:00:25]} 42. Kg2 {[%emt 0:00:35]} g6 {[%emt 0:00:16]} 43. Rc6 {[%emt 0:00:33]} Kg7 {[%emt 0:00:18]} 44. h4 {[%emt 0:00:05]} Bb8 {[%emt 0:00:32]} 45. Ra6 {[%emt 0:00:53]} Nd5 {[%emt 0:00:56]} 46. Bc4 {[%emt 0:00:20]} Nf4+ {[%emt 0:00:27]} 47. Kg3 {[%emt 0:00:23]} Rd7 {[%emt 0:00:29]} 48. g5 {[%emt 0:00:44]} (48. h5 $17 {was worth a try.}) 48... h5 {[%emt 0:00:23]} (48... Rc7 $19 49. Ra2 Nh5+ 50. Kh2 Ba7) 49. Ra5 {[%emt 0:00:29]} Bd6 {[%emt 0:00:39]} 50. Bd5 $2 {[%emt 0:00:36]} (50. Nd5 $17 {keeps fighting.}) 50... Bb4 $19 {[%emt 0:00:41]} 51. Rb5 {[%emt 0:00:19] [#]} Be1 $1 {[%emt 0:00:25]} 52. Bxe4 {[%emt 0:00:41]} (52. Bc4 $142 Rd2 53. Rxe5) 52... Rd2 $19 {[%emt 0:00:02]} 53. Rxe5 {[%emt 0:00:31]} Rxf2 {[%emt 0:00:23]} 54. Re8 {[%emt 0:00:27]} Ne2+ {[%emt 0:00:39]} 55. Kh3 {[%emt 0:00:01]} Ng1+ {[%emt 0:00:35]} 56. Kg3 {[%emt 0:00:01]} Re2+ {[%emt 0:00:50]} 57. Kf4 {[%emt 0:00:06]} Bxh4 {[%emt 0:00:26]} 58. Nd5 {[%emt 0:01:53]} Nh3+ {[%emt 0:00:18]} 59. Kf3 {[%emt 0:00:11]} Rf2+ {[%emt 0:00:05]} (59... Nxg5+ 60. Kxe2 Bg3 61. Kf1 $18) 60. Ke3 {[%emt 0:00:03]} Bxg5+ {[%emt 0:00:05]} 61. Kd4 {[%emt 0:00:03]} h4 {[%emt 0:00:31]} 62. Rb8 {[%emt 0:00:31]} Rd2+ {[%emt 0:00:19]} 63. Kc3 {[%emt 0:00:03]} Nf2 {[%emt 0:02:24]} 0-1